bitfinex/quotes_SOLUSD_20260217
["timestamp","ask_amount","ask_price","bid_price","bid_amount"]
[1771292949736,30.0,86.836,86.823,20.10751003]
[1771292951557,30.0,86.836,86.824,0.82751003]
[1771292952659,11.5153162,86.841,86.824,0.82751003]
[1771292953059,11.5153162,86.841,86.818,0.82751003]
[1771292953869,11.51423735,86.849,86.818,0.82751003]
[1771292954046,30.0,86.835,86.818,0.82751003]
[1771292954864,3.24412616,86.83,86.806,0.78375943]
[1771292955032,30.0,86.829,86.806,0.78375943]
[1771292957136,41.51695543,86.829,86.806,0.78375943]
[1771292960747,41.51695543,86.829,86.8,0.2]
[1771292960748,41.51695543,86.829,86.801,0.78375943]
[1771292961049,3.24412616,86.82,86.8,0.2]
[1771292961785,18.68,86.819,86.79,0.2]
[1771292961965,30.0,86.818,86.79,0.2]
[1771292962678,11.5184814,86.817,86.79,0.2]
[1771292962973,30.0,86.814,86.79,0.2]
[1771292963151,3.24412616,86.81,86.79,0.2]
[1771292964071,30.0,86.808,86.79,0.2]
[1771292964259,11.51980831,86.807,86.79,0.2]
[1771292964465,3.24412616,86.8,86.79,1e-08]
[1771292965909,3.24412616,86.8,86.77,0.2]
[1771292966058,3.24412616,86.79,86.761,0.78375943]
[1771292966257,11.52100278,86.798,86.761,0.78375943]
[1771292966564,41.52100278,86.798,86.761,0.78375943]
[1771292967377,30.0,86.787,86.761,0.78375943]
[1771292968463,30.0,86.787,86.76,0.2]
[1771292968778,30.0,86.787,86.76,0.98375943]
[1771292969305,30.0,86.787,86.761,0.78375943]
[1771292969576,30.30259581,86.786,86.761,0.78375943]
[1771292969784,30.0,86.784,86.761,0.78375943]
[1771292970385,30.0,86.784,86.76,0.2]
[1771292970888,30.0,86.784,86.761,0.78375943]
[1771292971987,3.24412616,86.78,86.76,0.2]
[1771292972162,30.0,86.779,86.76,0.2]
[1771292973188,11.52365807,86.778,86.76,0.2]
[1771292973383,30.0,86.777,86.76,0.2]
[1771292975671,11.52392366,86.776,86.76,0.2]
[1771292975877,30.0,86.774,86.76,0.2]
[1771292976081,30.0,86.774,86.761,0.78375943]
[1771292976275,22.4056671,86.774,86.771,0.74540777]
[1771292977286,0.70760747,86.789,86.771,0.74540777]
[1771292978398,12.25176197,86.797,86.77,3.24412616]
[1771292978594,0.73062645,86.796,86.76,3.44412616]
[1771292978774,0.73062645,86.789,86.76,0.2]
[1771292979593,11.52365807,86.778,86.75,0.2]
[1771292979792,0.70101776,86.777,86.75,0.2]
[1771292980490,0.70101776,86.777,86.751,0.19085918]
[1771292980688,0.70101776,86.777,86.752,0.19085918]
[1771292981575,0.70101776,86.788,86.752,0.19085918]
[1771292982181,0.70101776,86.787,86.754,0.18863983]
[1771292983601,11.52259581,86.786,86.756,0.17836426]
[1771292983795,0.70101776,86.796,86.761,0.17836426]
[1771292984784,0.67838457,86.795,86.762,33.3]
[1771292984986,0.67838457,86.795,86.763,0.16832339]
[1771292986710,0.67838457,86.789,86.763,0.16832339]
[1771292987617,0.67838457,86.787,86.755,0.15369045]
[1771292989211,0.66426102,86.785,86.755,0.15369045]
[1771292989705,0.66426102,86.779,86.75,0.2]
[1771292989908,0.66426102,86.779,86.75,33.5]
[1771292991585,3.24412616,86.77,86.75,33.5]
[1771292991807,0.66426102,86.769,86.75,33.5]
[1771292993797,0.66426102,86.767,86.75,0.2]
[1771292994811,0.66426102,86.765,86.75,0.2]
[1771292996913,0.66426102,86.763,86.75,0.2]
[1771292997118,0.66426102,86.763,86.73,19.66]
[1771292997611,11.52551749,86.764,86.73,19.66]
[1771292997612,0.66426102,86.759,86.73,19.66]
[1771292998002,0.66426102,86.749,86.73,0.2]
[1771292999123,0.66426102,86.747,86.73,0.2]
[1771293000214,0.66426102,86.747,86.72,3.43268605]
[1771293000215,0.66426102,86.739,86.72,0.1786874]
[1771293000414,11.52703209,86.753,86.731,0.29172578]
[1771293000999,30.0,86.762,86.741,0.29172578]
[1771293001304,11.52591602,86.761,86.741,0.29172578]
[1771293001506,0.66426102,86.76,86.731,0.28767147]
[1771293003815,0.66426102,86.758,86.731,0.28767147]
[1771293004025,0.66426102,86.758,86.73,3.25399865]
[1771293004026,30.66426102,86.762,86.733,0.27970203]
[1771293004501,0.66426102,86.761,86.733,0.27970203]
[1771293006419,30.0,86.762,86.741,0.26808785]
[1771293007429,12.18927292,86.768,86.741,0.26808785]
[1771293010113,0.66426102,86.767,86.741,0.26808785]
[1771293010803,0.66426102,86.767,86.74,3.25399865]
[1771293010804,0.66426102,86.782,86.751,0.25321535]
[1771293011004,0.66426102,86.781,86.751,0.25321535]
[1771293011323,0.66426102,86.781,86.743,33.3]
[1771293011324,0.66426102,86.779,86.743,33.3]
[1771293011518,0.66426102,86.769,86.743,33.3]
[1771293012219,0.66426102,86.759,86.72,3.43268605]
[1771293012605,0.66426102,86.759,86.72,3.67871893]
[1771293013303,0.66426102,86.757,86.72,3.67871893]
[1771293014338,0.66426102,86.757,86.72,0.42472028]
[1771293014634,0.60766558,86.749,86.72,0.1786874]
[1771293015606,0.60766558,86.746,86.72,0.1786874]
[1771293016724,0.60766558,86.743,86.72,0.1786874]
[1771293017108,0.60766558,86.743,86.721,0.22878626]
[1771293017312,0.60766558,86.743,86.72,3.43268605]
[1771293017726,30.0,86.742,86.72,3.43268605]
[1771293017930,0.60766558,86.743,86.72,3.43268605]
[1771293020611,0.60766558,86.743,86.721,0.21568855]
[1771293021509,28.81597636,86.758,86.721,0.21568855]
[1771293021510,12.13610624,86.742,86.721,0.21568855]
[1771293022128,0.60766558,86.741,86.72,0.1786874]
[1771293023833,0.60766558,86.741,86.721,0.20625491]
[1771293024010,12.13637205,86.74,86.721,0.20625491]
[1771293024210,0.60766558,86.739,86.72,0.1786874]
[1771293024826,0.60766558,86.739,86.72,0.38186972]
[1771293025221,0.60766558,86.745,86.721,0.20318232]
[1771293026031,0.60766558,86.743,86.72,0.1786874]
[1771293028234,0.60766558,86.741,86.72,0.1786874]
[1771293028433,0.60766558,86.741,86.72,0.36992825]
[1771293029916,0.60766558,86.741,86.72,0.1786874]
[1771293030419,0.60766558,86.739,86.72,0.1786874]
[1771293031014,0.60766558,86.735,86.72,0.1786874]
[1771293032034,30.0,86.733,86.72,0.1786874]
[1771293032243,0.60766558,86.732,86.72,0.1786874]
[1771293032536,12.13743544,86.732,86.72,0.1786874]
[1771293032742,0.60766558,86.732,86.72,0.1786874]
[1771293033122,30.0,86.729,86.72,0.1786874]
[1771293034143,30.60766558,86.729,86.72,0.1786874]
[1771293036327,30.60766558,86.729,86.709,30.77843958]
[1771293036328,0.60766558,86.728,86.709,30.60137012]
[1771293036648,3.25399865,86.72,86.684,0.16895133]
[1771293036946,30.0,86.727,86.677,0.16895133]
[1771293036947,0.60766558,86.709,86.677,0.16895133]
[1771293037326,0.60766558,86.709,86.675,11.53733185]
[1771293037528,0.60766558,86.706,86.671,19.72630721]
[1771293037944,0.60766558,86.706,86.671,19.56]
[1771293038142,0.60766558,86.706,86.67,3.25399865]
[1771293038448,0.60766558,86.704,86.668,11.53818535]
[1771293038631,0.60766558,86.7,86.668,11.53818535]
[1771293039538,0.60766558,86.696,86.668,11.53818535]
[1771293039734,25.34829048,86.697,86.69,3.25399865]
[1771293040348,25.34829048,86.697,86.68,3.35399865]
[1771293040546,30.0,86.694,86.68,3.35399865]
[1771293041654,12.14384029,86.711,86.68,14.89059366]
[1771293041950,0.6111819,86.71,86.68,3.35399865]
[1771293042141,0.6111819,86.709,86.68,0.1]
[1771293043734,3.25399865,86.71,86.68,0.1]
[1771293043735,0.6111819,86.707,86.68,0.1]
[1771293044832,0.6111819,86.692,86.68,0.1]
[1771293046238,30.6111819,86.692,86.68,0.1]
[1771293046545,30.0,86.692,86.68,0.1]
[1771293046738,30.0,86.692,86.68,3.35399865]
[1771293048251,0.6111819,86.691,86.653,0.59982]
[1771293048447,0.6111819,86.691,86.661,0.59982]
[1771293048448,30.0,86.69,86.661,0.59982]
[1771293049453,30.0,86.69,86.663,0.57011701]
[1771293050654,0.55245368,86.688,86.651,11.54054771]
[1771293050859,0.55245368,86.684,86.652,0.57011701]
[1771293051738,30.0,86.685,86.652,0.57011701]
[1771293051933,30.0,86.682,86.652,0.57011701]
[1771293052634,30.0,86.682,86.654,0.57011701]
[1771293053356,30.0,86.682,86.661,0.57011701]
[1771293053357,25.45924538,86.682,86.661,0.57011701]
[1771293053554,23.678768,86.682,86.674,0.57011701]
[1771293054262,0.58955517,86.681,86.656,22.86875791]
[1771293054448,28.83493713,86.701,86.653,11.54028135]
[1771293054449,0.58955517,86.679,86.653,11.54028135]
[1771293054754,0.58955517,86.679,86.645,11.54134687]
[1771293055758,0.58955517,86.677,86.645,11.54134687]
[1771293056636,0.58955517,86.674,86.645,11.54134687]
[1771293057643,0.58955517,86.672,86.645,11.54134687]
[1771293058263,0.58955517,86.669,86.645,11.54134687]
[1771293058645,0.58955517,86.666,86.645,11.54134687]
[1771293059562,30.0,86.667,86.645,11.54134687]
[1771293059753,30.0,86.665,86.645,11.54134687]
[1771293059952,0.58955517,86.664,86.645,11.54134687]
[1771293060647,0.58955517,86.664,86.644,19.6]
[1771293060859,0.58955517,86.662,86.64,0.1]
[1771293061868,11.53894972,86.663,86.63,0.1]
[1771293061869,0.58955517,86.659,86.63,0.1]
[1771293062267,30.0,86.657,86.63,11.64333102]
[1771293062460,0.55245368,86.656,86.63,15.00614919]
[1771293062663,0.55245368,86.656,86.63,0.1]
[1771293062864,0.55245368,86.654,86.63,0.1]
[1771293063251,0.55245368,86.649,86.61,3.26158301]
[1771293063458,0.55245368,86.639,86.606,11.54641608]
[1771293063667,0.55245368,86.629,86.59,3.26158301]
[1771293064072,0.55245368,86.629,86.593,0.57011701]
[1771293064277,0.55245368,86.629,86.601,0.57011701]
[1771293064874,30.0,86.627,86.603,0.57011701]
[1771293065076,0.55245368,86.626,86.604,0.57011701]
[1771293065446,0.55245368,86.625,86.604,0.57011701]
[1771293065662,0.55245368,86.625,86.6,11.54733976]
[1771293065867,0.55245368,86.625,86.595,18.64758184]
[1771293065868,3.26158301,86.62,86.595,18.64758184]
[1771293067151,11.54507775,86.617,86.595,18.64758184]
[1771293067453,30.0,86.618,86.596,0.57011701]
[1771293067761,30.55245368,86.618,86.596,12.11799451]
[1771293067967,0.55245368,86.617,86.596,12.11799451]
[1771293068175,0.55245368,86.614,86.596,11.5478775]
[1771293069164,30.0,86.615,86.6,3.26158301]
[1771293069165,26.84930897,86.615,86.6,3.26158301]
[1771293069472,11.54210224,86.64,86.6,3.26158301]
[1771293069473,0.5831682,86.625,86.6,3.26158301]
[1771293070274,0.5831682,86.625,86.6,23.06158301]
[1771293070576,0.5831682,86.648,86.61,3.26158301]
[1771293070756,0.5831682,86.648,86.62,3.26158301]
[1771293071986,0.5831682,86.648,86.621,11.54454462]
[1771293072275,0.5831682,86.648,86.62,3.26158301]
[1771293072464,0.5831682,86.646,86.62,14.80625608]
[1771293073268,0.5831682,86.653,86.62,14.80625608]
[1771293073454,0.5831682,86.676,86.64,3.26158301]
[1771293073650,0.5831682,86.675,86.64,3.26158301]
[1771293074386,0.5831682,86.669,86.632,11.54306573]
[1771293074574,0.5831682,86.669,86.62,28.86169475]
[1771293074575,0.5831682,86.659,86.62,3.26158301]
[1771293074778,0.5831682,86.649,86.61,3.26158301]
[1771293074960,0.5831682,86.639,86.602,11.54698274]
[1771293075166,0.5831682,86.639,86.6,3.26158301]
[1771293075364,0.5831682,86.639,86.593,19.8]
[1771293075365,0.5831682,86.629,86.595,30.19547161]
[1771293075566,0.5831682,86.629,86.595,18.64758184]
[1771293075768,0.5831682,86.627,86.596,11.5478775]
[1771293076376,0.5831682,86.627,86.6,3.26158301]
[1771293076565,0.5831682,86.638,86.61,3.26158301]
[1771293077073,0.5831682,86.638,86.596,40.41757125]
[1771293077074,0.5831682,86.638,86.6,3.26158301]
[1771293077961,0.5831682,86.626,86.596,11.5478775]
[1771293078657,0.5831682,86.626,86.6,3.26158301]
[1771293079089,0.5831682,86.626,86.596,11.5478775]
[1771293079090,0.5831682,86.619,86.595,18.64758184]
[1771293080158,0.5831682,86.617,86.595,18.64758184]
[1771293080359,3.26158301,86.61,86.571,0.58801034]
[1771293081374,30.0,86.609,86.571,0.58801034]
[1771293082160,30.0,86.609,86.573,0.58801034]
[1771293082387,30.0,86.609,86.581,0.58801034]
[1771293082777,23.0950726,86.609,86.59,3.26158301]
[1771293082967,23.0950726,86.609,86.581,19.86]
[1771293083275,23.0950726,86.609,86.574,22.86875791]
[1771293083276,0.59132359,86.607,86.574,22.86875791]
[1771293084180,0.59132359,86.607,86.575,11.5506786]
[1771293084663,0.59132359,86.607,86.563,4.61729252]
[1771293084664,0.59132359,86.589,86.549,22.86875791]
[1771293085588,0.59132359,86.589,86.541,19.88]
[1771293085766,0.59132359,86.589,86.55,11.55401502]
[1771293085961,0.59132359,86.589,86.55,14.81559803]
[1771293086374,0.59132359,86.587,86.55,14.81559803]
[1771293087083,0.59132359,86.579,86.55,11.55401502]
[1771293088277,0.59132359,86.579,86.55,3.26158301]
[1771293088481,0.59132359,86.577,86.533,22.86875791]
[1771293088777,0.59132359,86.577,86.545,11.82476565]
[1771293089170,4.61729252,86.615,86.552,0.5673826]
[1771293089371,3.26158301,86.59,86.552,0.5673826]
[1771293089783,3.26158301,86.6,86.552,0.5673826]
[1771293090161,11.54747745,86.599,86.553,40.43765091]
[1771293090362,11.54747745,86.599,86.56,3.26158301]
[1771293091174,0.56065591,86.598,86.56,3.26158301]
[1771293091570,11.54747745,86.599,86.546,34.42319205]
[1771293091571,0.56065591,86.579,86.546,34.42319205]
[1771293091773,0.56065591,86.579,86.546,34.42322268]
[1771293092180,0.56065591,86.579,86.55,3.26158301]
[1771293092488,0.56065591,86.577,86.55,3.26158301]
[1771293093468,0.56065591,86.577,86.547,0.5673826]
[1771293093990,0.56065591,86.569,86.517,0.5673826]
[1771293094183,0.56065591,86.569,86.541,0.5673826]
[1771293095277,0.56065591,86.567,86.53,3.26158301]
[1771293095968,3.26158301,86.56,86.521,0.5673826]
[1771293096167,0.56065591,86.549,86.52,3.26158301]
[1771293096381,0.56065591,86.549,86.521,0.5673826]
[1771293096673,0.56065591,86.557,86.531,0.5673826]
[1771293097188,30.0,86.556,86.531,0.5673826]
[1771293097484,0.56065591,86.554,86.523,12.12487371]
[1771293098187,0.56065591,86.554,86.524,0.5673826]
[1771293099472,0.56065591,86.552,86.524,0.5673826]
[1771293099983,0.56065591,86.552,86.525,11.55735336]
[1771293100699,0.56065591,86.552,86.526,0.5673826]
[1771293100901,12.11372613,86.558,86.526,0.5673826]
[1771293101078,11.55307022,86.558,86.531,0.5673826]
[1771293101796,0.56065591,86.558,86.531,0.5673826]
[1771293102173,0.56065591,86.558,86.521,0.5673826]
[1771293102377,0.56065591,86.549,86.521,0.5673826]
[1771293103290,0.56065591,86.549,86.512,11.55903428]
[1771293103479,0.56065591,86.549,86.513,0.5673826]
[1771293103678,0.56065591,86.549,86.523,0.5673826]
[1771293103879,0.56065591,86.547,86.523,0.5673826]
[1771293104974,0.56414811,86.561,86.531,0.56391317]
[1771293105274,0.56414811,86.559,86.531,0.56391317]
[1771293105474,0.56414811,86.559,86.521,0.56391317]
[1771293105794,0.56414811,86.549,86.517,11.55838039]
[1771293106691,0.56414811,86.547,86.517,11.55838039]
[1771293107478,0.56414811,86.547,86.517,0.56391317]
[1771293108575,0.56414811,86.547,86.521,0.56391317]
[1771293109801,11.55428201,86.548,86.523,0.53531533]
[1771293110576,3.26158301,86.59,86.541,0.53531533]
[1771293110895,40.41010482,86.612,86.524,5.36086188]
[1771293110896,0.53664391,86.591,86.56,3.26158301]
[1771293111098,0.53664391,86.591,86.561,7.66126405]
[1771293111393,0.53664391,86.588,86.55,3.26158301]
[1771293111777,0.53664391,86.588,86.552,0.53531533]
[1771293113491,11.5490778,86.587,86.552,0.53531533]
[1771293113792,0.53664391,86.586,86.552,0.53531533]
[1771293115700,0.53664391,86.584,86.552,0.53531533]
[1771293116817,0.53664391,86.569,86.52,3.26158301]
[1771293116987,0.53664391,86.569,86.481,92.50548836]
[1771293116988,0.53664391,86.549,86.512,0.53531533]
[1771293117806,0.53664391,86.547,86.513,12.09427178]
[1771293117998,0.53664391,86.547,86.514,0.53531533]
[1771293118897,0.53664391,86.545,86.516,0.53531533]
[1771293119213,0.53664391,86.566,86.531,0.53531533]
[1771293119500,4.61729252,86.607,86.531,0.53531533]
[1771293119501,0.53664391,86.576,86.531,0.53531533]
[1771293119702,0.53664391,86.579,86.541,0.53531533]
[1771293120895,11.54921118,86.586,86.553,0.53531533]
[1771293121500,0.53664391,86.585,86.553,0.53531533]
[1771293121685,11.54921118,86.586,86.528,20.08]
[1771293121686,0.53664391,86.579,86.546,0.53531533]
[1771293121891,0.53664391,86.585,86.551,0.53531533]
[1771293122196,0.53664391,86.579,86.551,0.53531533]
[1771293122891,0.53664391,86.577,86.544,0.53531533]
[1771293123596,0.53664391,86.577,86.536,0.53531533]
[1771293123801,0.53664391,86.569,86.533,11.55619573]
[1771293124110,0.53664391,86.569,86.529,0.53531533]
[1771293124312,0.53664391,86.569,86.528,11.55692866]
[1771293124713,0.53664391,86.569,86.531,0.53531533]
[1771293125518,0.53664391,86.567,86.531,11.55642611]
[1771293125816,0.53664391,86.567,86.532,0.53531533]
[1771293128317,0.53664391,86.566,86.534,0.53531533]
[1771293129623,0.53664391,86.566,86.536,0.53531533]
[1771293129800,0.53664391,86.573,86.541,0.53531533]
[1771293129992,0.53664391,86.573,86.543,0.53531533]
[1771293131621,11.55041177,86.577,86.543,0.53531533]
[1771293131817,0.53664391,86.58,86.551,0.53531533]
[1771293132320,0.53664391,86.59,86.561,0.53531533]
[1771293132632,0.53664391,86.606,86.571,0.53531533]
[1771293132795,0.53664391,86.606,86.578,0.53531533]
[1771293132996,0.53664391,86.606,86.57,3.80349589]
[1771293133424,0.53664391,86.606,86.571,0.53531533]
[1771293134231,0.52736275,86.604,86.572,11.55107887]
[1771293134432,0.52736275,86.604,86.572,12.08146784]
[1771293134608,0.52736275,86.604,86.573,0.53038897]
[1771293135623,0.52736275,86.589,86.549,0.53038897]
[1771293135820,0.52736275,86.589,86.551,0.53038897]
[1771293136398,11.54894442,86.588,86.551,0.53038897]
[1771293136823,12.07630717,86.588,86.551,0.53038897]
[1771293137123,0.52736275,86.587,86.553,0.53038897]
[1771293137505,0.52736275,86.579,86.546,12.0848821]
[1771293138026,0.52736275,86.579,86.546,0.53038897]
[1771293138524,0.52736275,86.577,86.547,11.55441551]
[1771293138936,0.52736275,86.577,86.547,12.08480448]
[1771293139109,0.52736275,86.577,86.548,0.53038897]
[1771293140728,11.55054518,86.576,86.548,0.53038897]
[1771293141218,12.07790793,86.576,86.548,0.53038897]
[1771293141425,11.54928646,86.586,86.55,0.53038897]
[1771293141721,0.52736275,86.585,86.55,0.53038897]
[1771293141938,0.52736275,86.579,86.55,0.53038897]
[1771293142533,0.52736275,86.579,86.537,0.53038897]
[1771293143223,0.52736275,86.579,86.541,0.53038897]
[1771293145135,0.52736275,86.579,86.543,0.53038897]
[1771293145827,0.52736275,86.579,86.524,10.4]
[1771293145828,0.52736275,86.569,86.533,0.53038897]
[1771293147314,0.52736275,86.565,86.535,0.53038897]
[1771293148420,30.52736275,86.565,86.535,0.53038897]
[1771293149119,0.52736275,86.565,86.535,0.53038897]
[1771293150025,0.52736275,86.563,86.535,0.53038897]
[1771293150927,3.26818056,86.56,86.522,11.55768729]
[1771293151130,0.52736275,86.559,86.529,0.53038897]
[1771293152021,0.52736275,86.557,86.527,11.55708567]
[1771293152613,0.52736275,86.557,86.527,0.53038897]
[1771293152811,0.52736275,86.549,86.517,0.53038897]
[1771293153836,0.52736275,86.539,86.512,0.53038897]
[1771293154012,0.52736275,86.539,86.514,0.53038897]
[1771293154210,0.52736275,86.539,86.516,0.53038897]
[1771293155232,0.52736275,86.539,86.515,11.55868924]
[1771293155939,0.52736275,86.539,86.513,0.53038897]
[1771293156234,19.5,86.561,86.507,0.53038897]
[1771293156235,0.52736275,86.537,86.507,0.53038897]
[1771293157638,0.52736275,86.535,86.507,0.53038897]
[1771293158322,0.52736275,86.535,86.509,0.53038897]
[1771293158519,0.52736275,86.548,86.511,0.53038897]
[1771293159929,0.52736275,86.548,86.51,3.26818056]
[1771293159930,0.52736275,86.546,86.513,0.53038897]
[1771293162439,0.52736275,86.544,86.506,0.53038897]
[1771293163140,0.52736275,86.544,86.511,0.53038897]
[1771293164457,0.51856497,86.539,86.505,11.55989717]
[1771293164621,0.51856497,86.539,86.505,12.10693777]
[1771293164818,0.51856497,86.539,86.5,3.26818056]
[1771293164819,0.51856497,86.539,86.506,0.5470406]
[1771293165023,3.26818056,86.52,86.5,0.5470406]
[1771293165423,0.51856497,86.522,86.5,0.5470406]
[1771293165938,0.51856497,86.527,86.5,0.5470406]
[1771293166124,0.51856497,86.527,86.501,0.5470406]
[1771293166325,0.51856497,86.525,86.49,3.26818056]
[1771293166538,0.51856497,86.525,86.491,0.5470406]
[1771293167244,11.55666483,86.531,86.501,0.5470406]
[1771293167841,23.67822696,86.533,86.52,3.26818056]
[1771293168346,0.57588079,86.545,86.521,11.55788768]
[1771293168923,0.57588079,86.552,86.53,3.26818056]
[1771293169728,0.57588079,86.589,86.54,3.26818056]
[1771293169929,0.57588079,86.559,86.51,3.26818056]
[1771293170135,0.57588079,86.559,86.53,3.26818056]
[1771293170330,12.12882794,86.558,86.53,3.26818056]
[1771293170543,0.57588079,86.557,86.53,3.26818056]
[1771293171051,0.57588079,86.557,86.52,3.26818056]
[1771293171235,0.57588079,86.557,86.51,3.26818056]
[1771293172446,0.57588079,86.555,86.511,11.55922368]
[1771293173252,0.57588079,86.555,86.52,3.26818056]
[1771293174830,0.57588079,86.553,86.52,3.26818056]
[1771293177052,0.57588079,86.551,86.52,3.26818056]
[1771293180446,0.57588079,86.549,86.52,3.26818056]
[1771293181458,0.57588079,86.549,86.511,11.55913988]
[1771293182838,0.57588079,86.547,86.511,11.55913988]
[1771293183054,0.57588079,86.547,86.52,3.26818056]
[1771293183654,11.55369218,86.553,86.52,3.26818056]
[1771293183864,0.57588079,86.556,86.52,3.26818056]
[1771293184048,0.57588079,86.563,86.54,3.26818056]
[1771293184251,0.57588079,86.569,86.54,3.26818056]
[1771293184658,11.5516126,86.568,86.54,3.26818056]
[1771293185160,0.57588079,86.569,86.541,11.5552166]
[1771293186669,0.57588079,86.577,86.541,11.5552166]
[1771293186973,0.57588079,86.577,86.55,3.26708626]
[1771293187161,0.57588079,86.583,86.56,3.26708626]
[1771293187665,0.57588079,86.583,86.551,11.55388152]
[1771293187878,0.57588079,86.583,86.55,3.26708626]
[1771293189159,0.57588079,86.581,86.55,3.26708626]
[1771293189670,0.57588079,86.581,86.551,11.55388152]
[1771293189856,0.57588079,86.581,86.552,0.0203505]
[1771293190346,0.57588079,86.581,86.55,3.26708626]
[1771293190742,0.57588079,86.581,86.551,0.02118309]
[1771293191048,0.57588079,86.581,86.551,11.57506461]
[1771293191244,0.57588079,86.579,86.552,0.02200612]
[1771293191652,0.57588079,86.579,86.541,0.02200612]
[1771293191866,0.57588079,86.579,86.542,10.42200612]
[1771293192170,0.57588079,86.569,86.542,10.4]
[1771293192362,0.57588079,86.569,86.533,0.02200612]
[1771293193651,0.57588079,86.567,86.533,0.02200612]
[1771293194056,11.5516126,86.568,86.52,0.02441891]
[1771293194057,0.57588079,86.549,86.52,0.02441891]
[1771293194252,0.57588079,86.549,86.514,0.02441891]
[1771293195052,0.57588079,86.549,86.506,0.02520478]
[1771293195358,0.57588079,86.547,86.506,0.02520478]
[1771293195867,11.55454902,86.546,86.506,0.02520478]
[1771293196057,0.57588079,86.545,86.506,0.02520478]
[1771293196568,0.57588079,86.539,86.491,11.56189661]
[1771293196754,0.57588079,86.539,86.492,0.02674952]
[1771293197149,0.57588079,86.537,86.492,0.02674952]
[1771293197560,0.57588079,86.529,86.491,11.56189661]
[1771293198364,0.57588079,86.527,86.49,14.82908117]
[1771293198591,0.57588079,86.526,86.49,3.26708626]
[1771293198750,0.57588079,86.516,86.462,0.02825899]
[1771293198949,0.57588079,86.509,86.462,0.02825899]
[1771293199162,0.57588079,86.509,86.471,0.02825899]
[1771293199555,0.57588079,86.507,86.471,0.02825899]
[1771293199865,0.57588079,86.507,86.465,0.02900074]
[1771293200050,0.57588079,86.489,86.46,0.1]
[1771293200249,0.57588079,86.487,86.46,0.1]
[1771293200452,0.57588079,86.479,86.441,11.59830024]
[1771293200975,0.57588079,86.487,86.46,3.26708626]
[1771293201868,0.57588079,86.485,86.46,3.26708626]
[1771293202068,0.57588079,86.485,86.451,0.03045879]
[1771293202275,0.57588079,86.485,86.45,3.26708626]
[1771293202778,0.57588079,86.479,86.44,0.1]
[1771293203076,0.57588079,86.479,86.441,0.03117528]
[1771293203453,0.57588079,86.479,86.44,0.1]
[1771293203659,0.57588079,86.469,86.44,0.1]
[1771293203966,0.57588079,86.467,86.44,0.1]
[1771293204176,12.14022443,86.473,86.441,0.03188354]
[1771293204372,0.57588079,86.472,86.441,0.03188354]
[1771293205155,0.57588079,86.472,86.44,0.1]
[1771293205367,0.57588079,86.469,86.44,0.1]
[1771293206276,0.57588079,86.467,86.44,0.1]
[1771293207270,0.57588079,86.467,86.44,3.36708626]
[1771293208062,0.57588079,86.467,86.44,0.1]
[1771293208263,0.57588079,86.467,86.441,0.03530465]
[1771293208462,11.56523951,86.466,86.441,0.03530465]
[1771293208662,0.57588079,86.465,86.441,0.03530465]
[1771293208978,0.57588079,86.465,86.44,0.1]
[1771293209959,0.57588079,86.465,86.44,3.36708626]
[1771293210174,0.57588079,86.465,86.44,0.1]
[1771293210674,0.57588079,86.463,86.44,0.1]
[1771293211379,0.57588079,86.463,86.44,3.36708626]
[1771293211563,0.57588079,86.463,86.44,0.1]
[1771293212169,0.57588079,86.468,86.44,3.36708626]
[1771293212384,0.57588079,86.468,86.44,0.1]
[1771293212577,11.56510576,86.467,86.44,0.1]
[1771293212771,0.57588079,86.466,86.44,3.36708626]
[1771293214279,11.56510576,86.467,86.44,3.36708626]
[1771293214280,11.56510576,86.467,86.441,0.0391575]
[1771293214679,11.56457254,86.471,86.451,0.0391575]
[1771293214876,11.56457254,86.471,86.45,3.26708626]
[1771293215182,0.57588079,86.47,86.431,0.0391575]
[1771293215857,0.57588079,86.469,86.423,0.03977407]
[1771293216668,0.57588079,86.466,86.423,0.03977407]
[1771293216869,3.26708626,86.46,86.423,0.03977407]
[1771293217071,0.57588079,86.459,86.423,0.03977407]
[1771293217766,3.26708626,86.46,86.423,0.03977407]
[1771293217767,0.57588079,86.457,86.423,0.03977407]
[1771293218374,0.57588079,86.457,86.42,3.26708626]
[1771293218979,0.57588079,86.457,86.411,10.4]
[1771293219184,0.57588079,86.449,86.412,0.04217036]
[1771293219488,0.57588079,86.419,86.382,10.4]
[1771293219679,0.57588079,86.407,86.37,0.3701675]
[1771293219873,0.57588079,86.399,86.385,18.17058968]
[1771293220068,0.57588079,86.399,86.37,0.3701675]
[1771293220683,0.55191236,86.389,86.37,0.3701675]
[1771293220886,0.55191236,86.406,86.371,0.58527451]
[1771293221982,0.55191236,86.404,86.371,0.58527451]
[1771293222487,3.26708626,86.41,86.391,0.58527451]
[1771293222488,11.57286395,86.41,86.391,0.58527451]